fUSD/lending_fUSD_20250115
["ID","MTS","AMOUNT","RATE_DAILY","PERIOD"]
[349014874,1736937045801,-500.0,0.00012189,2]
[349014875,1736937045811,-498.71712396,0.00012189,2]
[349014876,1736937045823,-500.0,0.00012189,2]
[349014877,1736937045833,-500.61665105,0.00012189,2]
[349014878,1736937045843,-500.0,0.00012189,2]
[349014879,1736937045853,-500.0,0.00012189,2]
[349014880,1736937045863,-500.0,0.00012189,2]
[349014881,1736937045873,-500.0,0.00012189,2]
[349014882,1736937045883,-500.0,0.00012189,2]
[349014883,1736937045893,-502.46042957,0.00012189,2]
[349014884,1736937045904,-500.0,0.00012189,2]
[349014885,1736937045914,-500.0,0.00012189,2]
[349014886,1736937045924,-500.67481067,0.00012189,2]
[349014887,1736937045933,-500.0,0.00012189,2]
[349014888,1736937045943,-618.22639109,0.00012189,2]
[349014889,1736937045952,-500.0,0.00012189,2]
[349014890,1736937045962,-500.0,0.00012189,2]
[349014891,1736937045973,-500.0,0.00012189,2]
[349014892,1736937045982,-500.0,0.00012189,2]
[349014893,1736937045992,-327.31650056,0.00012189,2]
[349014894,1736937046001,-500.0,0.00012189,2]
[349014895,1736937046011,-500.0,0.00012189,2]
[349014896,1736937046022,-501.77490765,0.00012189,2]
[349014897,1736937046031,-500.0,0.00012189,2]
[349014898,1736937046041,-631.9167777,0.00012189,2]
[349014899,1736937046051,-500.0,0.00012189,2]
[349014900,1736937046062,-500.0,0.00012189,2]
[349014901,1736937046072,-501.09257251,0.00012189,2]
[349014902,1736937046082,-506.93472656,0.00012189,2]
[349014903,1736937046092,-500.0,0.00012189,2]
[349014904,1736937046102,-500.0,0.00012189,2]
[349014905,1736937046113,-500.0,0.00012189,2]
[349014906,1736937046123,-563.26706583,0.00012189,2]
[349014907,1736937046133,-500.0,0.00012189,2]
[349014908,1736937046143,-439.98703768,0.00012189,2]
[349014909,1736937046153,-500.0,0.00012189,2]
[349014910,1736937046163,-500.0,0.00012189,2]
[349014911,1736937046172,-545.0384971,0.00012189,2]
[349014912,1736937046182,-507.18874643,0.00012189,2]
[349014913,1736937046193,-500.0,0.00012189,2]
[349014914,1736937046203,-500.0,0.00012189,2]
[349014915,1736937046213,-500.0,0.00012189,2]
[349014916,1736937046223,-500.0,0.00012189,2]
[349014917,1736937046233,-500.0,0.00012189,2]
[349014918,1736937046243,-500.0,0.00012189,2]
[349014919,1736937046253,-500.0,0.00012189,2]
[349014920,1736937046262,-500.0,0.00012189,2]
[349014921,1736937046272,-511.77826524,0.00012189,2]
[349014922,1736937046282,-500.0,0.00012189,2]
[349014923,1736937046291,-500.0,0.00012189,2]
[349014924,1736937046301,-506.68182983,0.00012189,2]
[349014925,1736937046311,-501.64239618,0.00012189,2]
[349014926,1736937046321,-500.0,0.00012189,2]
[349014927,1736937046331,-500.0,0.00012189,2]
[349014928,1736937046341,-199.91898115,0.00012189,2]
[349014929,1736937046351,-500.0,0.00012189,2]
[349014930,1736937046361,-500.53498695,0.00012189,2]
[349014931,1736937046370,-500.0,0.00012189,2]
[349014932,1736937046380,-500.0,0.00012189,2]
[349014933,1736937046389,-223.68782817,0.00012189,2]
[349014934,1736937046399,-500.0,0.00012189,2]
[349014935,1736937046409,-500.0,0.00012189,2]
[349014936,1736937046419,-500.0,0.00012189,2]
[349014937,1736937046429,-500.0,0.00012189,2]
[349014938,1736937046439,-500.0,0.00012189,2]
[349014939,1736937046448,-500.0,0.00012189,2]
[349014940,1736937046458,-501.22853929,0.00012189,2]
[349014941,1736937046468,-502.80754579,0.00012189,2]
[349014942,1736937046478,-500.0,0.00012189,2]
[349014943,1736937046487,-500.0,0.00012189,2]
[349014944,1736937046497,-500.0,0.00012189,2]
[349014945,1736937046507,-500.0,0.00012189,2]
[349014947,1736937046516,-506.80095657,0.00012189,2]
[349014949,1736937046525,-500.6153651,0.00012189,2]
[349014951,1736937046534,-500.61894343,0.00012189,2]
[349014952,1736937046545,-500.0,0.00012189,2]
[349014953,1736937046557,-500.40619121,0.00012189,2]
[349014954,1736937046566,-500.0,0.00012189,2]
[349014955,1736937046575,-500.0,0.00012189,2]
[349014956,1736937046585,-500.0,0.00012189,2]
[349014957,1736937046594,-502.52521334,0.00012189,2]
[349014958,1736937046603,-500.0,0.00012189,2]
[349014959,1736937046613,-500.0,0.00012189,2]
[349014960,1736937046624,-500.0,0.00012189,2]
[349014961,1736937046634,-502.57536004,0.00012189,2]
[349014962,1736937046643,-500.0,0.00012189,2]
[349014963,1736937046653,-500.0,0.00012189,2]
[349014964,1736937046663,-500.0,0.00012189,2]
[349014965,1736937046673,-553.32124653,0.00012189,2]
[349014966,1736937046683,-500.0,0.00012189,2]
[349014967,1736937046692,-500.0,0.00012189,2]
[349014968,1736937046702,-500.0,0.00012189,2]
[349014969,1736937046712,-500.0,0.00012189,2]
[349014970,1736937046721,-500.0,0.00012189,2]
[349014971,1736937046731,-500.0,0.00012189,2]
[349014972,1736937046741,-500.0,0.00012189,2]
[349014973,1736937046752,-158.776847,0.00012189,2]
[349014974,1736937046762,-500.0,0.00012189,2]
[349014975,1736937046772,-500.0,0.00012189,2]
[349014976,1736937046782,-150.0,0.00012189,2]
[349014977,1736937046792,-500.0,0.00012189,2]
[349014978,1736937046802,-500.0,0.00012189,2]
[349014979,1736937046812,-500.0,0.00012189,2]
[349014980,1736937046823,-500.0,0.00012189,2]
[349014981,1736937046832,-5000.0,0.00012189,2]
[349014982,1736937046842,-500.0,0.00012189,2]
[349014983,1736937046852,-500.0,0.00012189,2]
[349014984,1736937046863,-500.0,0.00012189,2]
[349014985,1736937046873,-500.0,0.00012189,2]
[349014986,1736937046882,-500.0,0.00012189,2]
[349014987,1736937046891,-500.0,0.00012189,2]
[349014988,1736937046901,-500.0,0.00012189,2]
[349014989,1736937046911,-500.0,0.00012189,2]
[349014990,1736937046921,-500.0,0.00012189,2]
[349014991,1736937046930,-500.0,0.00012189,2]
[349014992,1736937046940,-500.0,0.00012189,2]
[349014993,1736937046950,-505.93944439,0.00012189,2]
[349014994,1736937046960,-500.0,0.00012189,2]
[349014995,1736937046969,-500.0,0.00012189,2]
[349014996,1736937046980,-500.0,0.00012189,2]
[349014997,1736937046990,-500.0,0.00012189,2]
[349014998,1736937047000,-500.0,0.00012189,2]
[349014999,1736937047010,-500.0,0.00012189,2]
[349015000,1736937047021,-500.0,0.00012189,2]
[349015001,1736937047031,-500.0,0.00012189,2]
[349015002,1736937047041,-500.0,0.00012189,2]
[349015003,1736937047051,-501.2240659,0.00012189,2]
[349015004,1736937047061,-500.0,0.00012189,2]
[349015005,1736937047072,-500.0,0.00012189,2]
[349015006,1736937047082,-500.0,0.00012189,2]
[349015007,1736937047092,-500.0,0.00012189,2]
[349015008,1736937047102,-593.15,0.0001219,2]
[349015009,1736937047114,-509.88,0.0001219,2]
[349015010,1736937047124,-207.71,0.0001219,2]
[349015011,1736937047134,-365.97,0.0001219,2]
[349015012,1736937047143,-500.0,0.0001219,2]
[349015013,1736937047153,-500.0,0.00012191,2]
[349015014,1736937047162,-500.0,0.00012191,2]
[349015015,1736937047172,-601.22,0.00012191,2]
[349015016,1736937047183,-332.76,0.00012191,2]
[349015017,1736937047193,-362.58768889,0.00012191,2]
[349015018,1736937047203,-331.0,0.00012193,2]
[349015019,1736937047212,-1517.83215623,0.00012229,2]
[349015020,1736937047221,-160.6590571,0.00012229,2]
[349015021,1736937047232,-2613.05073433,0.0001229,2]
[349015022,1736937047241,-1441511.66990491,0.000123,2]
[349015023,1736937047252,-184.95,0.00012329,2]
[349015024,1736937047261,-236.4834262,0.00012348,2]
[349015025,1736937047271,-500.0,0.00012462,2]
[349015026,1736937047280,-500.0,0.00012462,2]
[349015027,1736937047290,-500.0,0.00012462,2]
[349015028,1736937047299,-605.56,0.00012462,2]
[349015029,1736937047309,-500.0,0.00012462,2]
[349015030,1736937047319,-500.0,0.00012462,2]
[349015031,1736937047329,-748.08,0.00012462,2]
[349015032,1736937047339,-500.0,0.00012462,2]
[349015033,1736937047349,-500.0,0.00012462,2]
[349015034,1736937047359,-500.0,0.00012462,2]
[349015035,1736937047369,-524.32,0.00012462,2]
[349015036,1736937047378,-500.0,0.00012462,2]
[349015037,1736937047388,-500.0,0.00012462,2]
[349015038,1736937047397,-582.19,0.00012462,2]
[349015039,1736937047407,-500.0,0.00012462,2]
[349015040,1736937047418,-175.926455,0.00012462,2]
[349015041,1736937047430,-500.0,0.00012462,2]
[349015042,1736937047439,-500.0,0.00012462,2]
[349015043,1736937047449,-601.03,0.00012462,2]
[349015044,1736937047459,-500.0,0.00012462,2]
[349015045,1736937047468,-525.14,0.00012462,2]
[349015046,1736937047479,-500.0,0.00012462,2]
[349015047,1736937047491,-1262.75,0.00012462,2]
[349015048,1736937047500,-500.0,0.00012462,2]
[349015049,1736937047510,-755.67,0.00012462,2]
[349015050,1736937047520,-710.58,0.00012462,2]
[349015051,1736937047530,-1145.95,0.00012462,2]
[349015052,1736937047541,-164.632628,0.00012462,2]
[349015053,1736937047555,-500.0,0.00012462,2]
[349015054,1736937047565,-500.0,0.00012463,2]
[349015055,1736937047574,-215.09,0.00012463,2]
[349015056,1736937047584,-640.94,0.00012463,2]
[349015057,1736937047595,-500.0,0.00012463,2]
[349015058,1736937047606,-151.29335019,0.00012463,2]
[349015059,1736937047617,-500.0,0.00012463,2]
[349015060,1736937047628,-500.0,0.00012463,2]
[349015061,1736937047639,-502.39646859,0.00012463,2]
[349015062,1736937047649,-500.0,0.00012463,2]
[349015063,1736937047659,-502.84716907,0.00012463,2]
[349015064,1736937047669,-504.70163025,0.00012463,2]
[349015065,1736937047679,-504.48375104,0.00012463,2]
[349015066,1736937047690,-500.0,0.00012463,2]
[349015067,1736937047700,-500.0,0.00012463,2]
[349015068,1736937047710,-516.77387237,0.00012463,2]
[349015069,1736937047721,-500.0,0.00012463,2]
[349015070,1736937047731,-500.0,0.00012463,2]
[349015071,1736937047740,-500.0,0.00012463,2]
[349015072,1736937047750,-500.0,0.00012463,2]
[349015073,1736937047760,-500.0,0.00012463,2]
[349015074,1736937047771,-500.0,0.00012463,2]
[349015075,1736937047781,-511.41424421,0.00012463,2]
[349015076,1736937047791,-508.48853709,0.00012463,2]
[349015077,1736937047801,-500.0,0.00012463,2]
[349015078,1736937047812,-604.81833411,0.00012463,2]
[349015079,1736937047822,-405.07,0.00012463,2]
[349015080,1736937047832,-500.0,0.00012463,2]
[349015081,1736937047994,-500.0,0.00012463,2]
[349015082,1736937048025,-500.0,0.00012463,2]
[349015083,1736937048035,-500.0,0.00012463,2]
[349015084,1736937048046,-506.114978,0.00012463,2]
[349015085,1736937048056,-500.0,0.00012463,2]
[349015086,1736937048067,-500.0,0.00012463,2]
[349015087,1736937048076,-500.0,0.00012463,2]
[349015088,1736937048086,-500.0,0.00012463,2]
[349015089,1736937048097,-500.0,0.00012463,2]
[349015090,1736937048107,-500.0,0.00012463,2]
[349015091,1736937048117,-500.0,0.00012463,2]
[349015092,1736937048127,-500.0,0.00012463,2]
[349015093,1736937048138,-500.0,0.00012463,2]
[349015094,1736937048149,-507.5140196,0.00012463,2]
[349015095,1736937048159,-500.0,0.00012463,2]
[349015096,1736937048170,-500.0,0.00012463,2]
[349015097,1736937048181,-508.4108863,0.00012463,2]
[349015098,1736937048191,-500.0,0.00012463,2]
[349015099,1736937048203,-500.0,0.00012463,2]
[349015100,1736937048213,-500.0,0.00012463,2]
[349015101,1736937048223,-505.63319729,0.00012463,2]
[349015102,1736937048234,-500.0,0.00012463,2]
[349015103,1736937048246,-647.38385603,0.00012463,2]
[349015104,1736937048258,-500.0,0.00012463,2]
[349015105,1736937048268,-500.0,0.00012463,2]
[349015106,1736937048279,-502.07311012,0.00012463,2]
[349015107,1736937048289,-500.0,0.00012463,2]
[349015108,1736937048298,-500.0,0.00012463,2]
[349015109,1736937048309,-500.0,0.00012463,2]
[349015110,1736937048319,-500.0,0.00012463,2]
[349015111,1736937048329,-500.0,0.00012463,2]
[349015112,1736937048339,-500.0,0.00012463,2]
[349015113,1736937048348,-500.0,0.00012463,2]
[349015114,1736937048360,-500.0,0.00012463,2]
[349015115,1736937048370,-500.0,0.00012463,2]
[349015116,1736937048380,-503.00310706,0.00012463,2]
[349015117,1736937048391,-568.03258594,0.00012463,2]
[349015118,1736937048401,-500.0,0.00012463,2]
[349015119,1736937048410,-505.68080658,0.00012463,2]
[349015120,1736937048420,-500.0,0.00012463,2]
[349015121,1736937048430,-504.31475219,0.00012463,2]
[349015122,1736937048440,-500.0,0.00012463,2]
[349015123,1736937048450,-500.0,0.00012463,2]
[349015124,1736937048460,-500.0,0.00012463,2]
[349015125,1736937048470,-500.0,0.00012463,2]
[349015126,1736937048480,-500.0,0.00012463,2]
[349015127,1736937048490,-500.0,0.00012463,2]
[349015128,1736937048499,-500.0,0.00012463,2]
[349015129,1736937048509,-500.0,0.00012463,2]
[349015130,1736937048519,-500.0,0.00012463,2]
[349015131,1736937048530,-189.73375683,0.00012463,2]
[349015132,1736937048540,-500.0,0.00012463,2]
[349015133,1736937048554,-500.0,0.00012463,2]
[349015134,1736937048564,-300.0,0.00012463,2]
[349015135,1736937048574,-500.0,0.00012463,2]
[349015136,1736937048583,-509.81,0.00012463,2]
[349015137,1736937048595,-500.0,0.00012463,2]
[349015138,1736937048605,-500.0,0.00012463,2]
[349015139,1736937048615,-500.0,0.00012463,2]
[349015140,1736937048627,-593.15,0.00012464,2]
[349015141,1736937048637,-500.0,0.00012464,2]
[349015142,1736937048647,-500.0,0.00012465,2]
[349015143,1736937048656,-500.0,0.00012465,2]
[349015144,1736937048665,-601.22,0.00012465,2]
[349015145,1736937048675,-400.0,0.00012465,2]
[349015146,1736937048684,-393.28,0.00012733,2]
[349015147,1736937048694,-500.0,0.00012736,2]
[349015148,1736937048703,-500.0,0.00012736,2]
[349015149,1736937048712,-614.6,0.00012736,2]
[349015150,1736937048722,-493.68,0.00012736,2]
[349015151,1736937048731,-312.43878139,0.00012736,2]
[349015152,1736937048742,-748.08,0.00012736,2]
[349015153,1736937048752,-500.0,0.00012736,2]
[349015154,1736937048762,-500.0,0.00012736,2]
[349015155,1736937048773,-524.32,0.00012736,2]
[349015156,1736937048784,-500.0,0.00012736,2]
[349015157,1736937048793,-500.0,0.00012736,2]
[349015158,1736937048803,-582.19,0.00012736,2]
[349015159,1736937048813,-500.0,0.00012736,2]
[349015160,1736937048823,-175.926455,0.00012736,2]
[349015161,1736937048833,-500.0,0.00012736,2]
[349015162,1736937048843,-500.0,0.00012736,2]
[349015163,1736937048854,-601.03,0.00012736,2]
[349015164,1736937048864,-500.0,0.00012736,2]
[349015165,1736937048874,-525.14,0.00012736,2]
[349015166,1736937048885,-500.0,0.00012736,2]
[349015167,1736937048895,-1262.75,0.00012736,2]
[349015168,1736937048904,-580.50974119,0.00012736,2]
[349015169,1736937048914,-755.67,0.00012736,2]
[349015170,1736937048924,-710.58,0.00012736,2]
[349015171,1736937048934,-1145.95,0.00012736,2]
[349015172,1736937048944,-500.0,0.00012736,2]
[349015173,1736937048954,-500.0,0.00012737,2]
[349015174,1736937048964,-640.94,0.00012737,2]
[349015175,1736937048974,-500.0,0.00012737,2]
[349015176,1736937048984,-565.18972652,0.00012737,2]
[349015177,1736937048994,-500.0,0.00012737,2]
[349015178,1736937049004,-515.1629674,0.00012737,2]
[349015179,1736937049015,-500.0,0.00012737,2]
[349015180,1736937049025,-507.11896708,0.00012737,2]
[349015181,1736937049035,-500.0,0.00012737,2]
[349015182,1736937049046,-500.0,0.00012737,2]
[349015183,1736937049057,-643.20391247,0.00012737,2]
[349015184,1736937049067,-500.0,0.00012737,2]
[349015185,1736937049077,-500.0,0.00012737,2]
[349015186,1736937049087,-500.0,0.00012737,2]
[349015187,1736937049098,-500.0,0.00012737,2]
[349015188,1736937049109,-500.0,0.00012737,2]
[349015189,1736937049119,-500.0,0.00012737,2]
[349015190,1736937049130,-500.0,0.00012737,2]
[349015191,1736937049141,-500.0,0.00012737,2]
[349015192,1736937049152,-500.0,0.00012737,2]
[349015193,1736937049162,-500.0,0.00012737,2]
[349015194,1736937049172,-500.0,0.00012737,2]
[349015195,1736937049182,-500.0,0.00012737,2]
[349015196,1736937049191,-593.15,0.00012738,2]
[349015197,1736937049202,-500.0,0.00012738,2]
[349015198,1736937049212,-500.0,0.00012739,2]
[349015199,1736937049223,-500.0,0.00012739,2]
[349015200,1736937049233,-601.22,0.00012739,2]
[349015201,1736937049243,-236.4834262,0.00012797,2]
[349015202,1736937049252,-8737.87089406,0.000129,7]
[349015203,1736937049262,-600.0,0.00013,2]
[349015204,1736937049271,-165.0,0.0001301,2]
[349015205,1736937049282,-748.08,0.0001301,2]
[349015206,1736937049293,-500.0,0.0001301,2]
[349015207,1736937049304,-524.32,0.0001301,2]
[349015208,1736937049315,-500.0,0.0001301,2]
[349015209,1736937049325,-500.0,0.0001301,2]
[349015210,1736937049335,-582.19,0.0001301,2]
[349015211,1736937049346,-175.926455,0.0001301,2]
[349015212,1736937049357,-601.03,0.0001301,2]
[349015213,1736937049368,-500.0,0.0001301,2]
[349015214,1736937049379,-525.14,0.0001301,2]
[349015215,1736937049390,-500.0,0.0001301,2]
[349015216,1736937049400,-1262.75,0.0001301,2]
[349015217,1736937049410,-710.58,0.0001301,2]
[349015218,1736937049420,-755.67,0.0001301,2]
[349015219,1736937049430,-164.632628,0.0001301,2]
[349015220,1736937049440,-1145.95,0.0001301,2]
[349015221,1736937049450,-500.0,0.0001301,2]
[349015222,1736937049461,-500.0,0.00013011,2]
[349015223,1736937049472,-640.94,0.00013011,2]
[349015224,1736937049482,-226.28,0.00013011,2]
[349015225,1736937049493,-500.0,0.00013011,2]
[349015226,1736937049502,-242.09,0.00013011,2]
[349015227,1736937049512,-500.0,0.00013011,2]
[349015228,1736937049523,-500.0,0.00013011,2]
[349015229,1736937049533,-500.0,0.00013011,2]
[349015230,1736937049543,-593.15,0.00013012,2]
[349015231,1736937049557,-500.0,0.00013012,2]
[349015232,1736937049567,-500.0,0.00013013,2]
[349015233,1736937049577,-500.0,0.00013013,2]
[349015234,1736937049587,-601.22,0.00013013,2]
[349015235,1736937049599,-152.6,0.00013046,2]
[349015236,1736937049608,-500.0,0.00013184,2]
[349015237,1736937049618,-500.0,0.00013184,2]
[349015238,1736937049628,-236.4834262,0.00013245,2]
[349015239,1736937049639,-748.08,0.00013284,2]
[349015240,1736937049650,-500.0,0.00013284,2]
[349015241,1736937049660,-524.32,0.00013284,2]
[349015242,1736937049669,-500.0,0.00013284,2]
[349015243,1736937049679,-500.0,0.00013284,2]
[349015244,1736937049690,-582.19,0.00013284,2]
[349015245,1736937049699,-175.926455,0.00013284,2]
[349015246,1736937049709,-601.03,0.00013284,2]
[349015247,1736937049720,-500.0,0.00013284,2]
[349015248,1736937049729,-525.14,0.00013284,2]
[349015249,1736937049738,-500.0,0.00013284,2]
[349015250,1736937049748,-1262.75,0.00013284,2]
[349015251,1736937049758,-710.58,0.00013284,2]
[349015252,1736937049768,-755.67,0.00013284,2]
[349015253,1736937049777,-1145.95,0.00013284,2]
[349015254,1736937049787,-500.0,0.00013284,2]
[349015255,1736937049797,-500.0,0.00013285,2]
[349015256,1736937049806,-183.49613417,0.00013285,2]
[349015257,1736937049816,-640.94,0.00013285,2]
[349015258,1736937049828,-500.0,0.00013285,2]
[349015259,1736937049837,-500.0,0.00013285,2]
[349015260,1736937049847,-500.0,0.00013285,2]
[349015261,1736937049857,-172.72,0.00013285,2]
[349015262,1736937049867,-593.15,0.00013286,2]
[349015263,1736937049877,-500.0,0.00013286,2]
[349015264,1736937049886,-500.0,0.00013287,2]
[349015265,1736937049895,-500.0,0.00013287,2]
[349015266,1736937049905,-601.22,0.00013287,2]
[349015267,1736937049915,-748.08,0.00013558,2]
[349015268,1736937049924,-500.0,0.00013558,2]
[349015269,1736937049934,-524.32,0.00013558,2]
[349015270,1736937049943,-500.0,0.00013558,2]
[349015271,1736937049953,-500.0,0.00013558,2]
[349015272,1736937049963,-582.19,0.00013558,2]
[349015273,1736937049973,-175.926455,0.00013558,2]
[349015274,1736937049983,-601.03,0.00013558,2]
[349015275,1736937049993,-500.0,0.00013558,2]
[349015276,1736937050003,-525.14,0.00013558,2]
[349015277,1736937050012,-500.0,0.00013558,2]
[349015278,1736937050022,-1262.75,0.00013558,2]
[349015279,1736937050032,-710.58,0.00013558,2]
[349015280,1736937050041,-755.67,0.00013558,2]
[349015281,1736937050050,-164.632628,0.00013558,2]
[349015282,1736937050060,-1145.95,0.00013558,2]
[349015283,1736937050070,-500.0,0.00013558,2]
[349015284,1736937050079,-619.64,0.00013559,2]
[349015285,1736937050088,-640.94,0.00013559,2]
[349015286,1736937050097,-226.83,0.00013559,2]
[349015287,1736937050107,-500.0,0.00013559,2]
[349015288,1736937050116,-500.0,0.00013559,2]
[349015289,1736937050126,-593.15,0.0001356,2]
[349015290,1736937050135,-500.0,0.0001356,2]
[349015291,1736937050144,-500.0,0.00013561,2]
[349015292,1736937050155,-500.0,0.00013561,2]
[349015293,1736937050166,-601.22,0.00013561,2]
[349015294,1736937050174,-236.4834262,0.00013693,2]
[349015295,1736937050183,-200.0,0.00013699,2]
[349015296,1736937050193,-400.0,0.00013712,2]
[349015297,1736937050206,-748.08,0.00013832,2]
[349015298,1736937050217,-500.0,0.00013832,2]
[349015299,1736937050227,-524.32,0.00013832,2]
[349015300,1736937050236,-534.88,0.00013832,2]
[349015301,1736937050246,-500.0,0.00013832,2]
[349015302,1736937050255,-582.19,0.00013832,2]
[349015303,1736937050266,-171.069804,0.00013832,2]
[349015304,1736937050275,-175.926455,0.00013832,2]
[349015305,1736937050285,-601.03,0.00013832,2]
[349015306,1736937050295,-500.0,0.00013832,2]
[349015307,1736937050304,-525.14,0.00013832,2]
[349015308,1736937050314,-500.0,0.00013832,2]
[349015309,1736937050323,-1262.75,0.00013832,2]
[349015310,1736937050333,-177.27343,0.00013832,2]
[349015311,1736937050343,-710.58,0.00013832,2]
[349015312,1736937050353,-755.67,0.00013832,2]
[349015313,1736937050363,-1145.95,0.00013832,2]
[349015314,1736937050373,-339.78,0.00013832,2]
[349015315,1736937050383,-640.94,0.00013833,2]
[349015316,1736937050392,-500.0,0.00013833,2]
[349015317,1736937050402,-500.0,0.00013833,2]
[349015318,1736937050452,-500.0,0.00013833,2]
[349015319,1736937050461,-593.15,0.00013834,2]
[349015320,1736937050471,-500.0,0.00013834,2]
[349015321,1736937050480,-360.6,0.00013835,2]
[349015322,1736937050489,-500.0,0.00013835,2]
[349015323,1736937050499,-601.22,0.00013835,2]
[349015324,1736937050509,-282.29,0.00013954,2]
[349015325,1736937050519,-748.08,0.00014106,2]
[349015326,1736937050528,-500.0,0.00014106,2]
[349015327,1736937050538,-524.32,0.00014106,2]
[349015328,1736937050547,-500.0,0.00014106,2]
[349015329,1736937050560,-582.19,0.00014106,2]
[349015330,1736937050570,-175.926455,0.00014106,2]
[349015331,1736937050579,-601.03,0.00014106,2]
[349015332,1736937050588,-500.0,0.00014106,2]
[349015333,1736937050599,-525.14,0.00014106,2]
[349015334,1736937050610,-500.0,0.00014106,2]
[349015335,1736937050620,-1262.75,0.00014106,2]
[349015336,1736937050630,-710.58,0.00014106,2]
[349015337,1736937050640,-755.67,0.00014106,2]
[349015338,1736937050649,-164.632628,0.00014106,2]
[349015339,1736937050659,-1145.95,0.00014106,2]
[349015340,1736937050668,-640.94,0.00014107,2]
[349015341,1736937050677,-500.0,0.00014107,2]
[349015342,1736937050686,-500.0,0.00014107,2]
[349015343,1736937050694,-500.0,0.00014107,2]
[349015344,1736937050703,-593.15,0.00014108,2]
[349015345,1736937050713,-500.0,0.00014108,2]
[349015346,1736937050723,-500.0,0.00014109,2]
[349015347,1736937050732,-601.22,0.00014109,2]
[349015348,1736937050742,-236.4834262,0.00014141,2]
[349015349,1736937050751,-748.08,0.0001438,2]
[349015350,1736937050760,-500.0,0.0001438,2]
[349015351,1736937050770,-524.32,0.0001438,2]
[349015352,1736937050779,-500.0,0.0001438,2]
[349015353,1736937050789,-582.19,0.0001438,2]
[349015354,1736937050798,-175.926455,0.0001438,2]
[349015355,1736937050808,-601.03,0.0001438,2]
[349015356,1736937050817,-525.14,0.0001438,2]
[349015357,1736937050827,-500.0,0.0001438,2]
[349015358,1736937050837,-1262.75,0.0001438,2]
[349015359,1736937050846,-710.58,0.0001438,2]
[349015360,1736937050856,-755.67,0.0001438,2]
[349015361,1736937050867,-1145.95,0.0001438,2]
[349015362,1736937050877,-640.94,0.00014381,2]
[349015363,1736937050887,-187.45,0.00014381,2]
[349015364,1736937050897,-500.0,0.00014381,2]
[349015365,1736937050907,-500.0,0.00014381,2]
[349015366,1736937050916,-593.15,0.00014382,2]
[349015367,1736937050926,-500.0,0.00014382,2]
[349015368,1736937050935,-500.0,0.00014383,2]
[349015369,1736937050944,-601.22,0.00014383,2]
[349015370,1736937050954,-236.4834262,0.0001459,2]
[349015371,1736937050963,-200.0,0.0001461,2]
[349015372,1736937050973,-748.08,0.00014654,2]
[349015373,1736937050982,-500.0,0.00014654,2]
[349015374,1736937050992,-524.32,0.00014654,2]
[349015375,1736937051002,-500.0,0.00014654,2]
[349015376,1736937051012,-582.19,0.00014654,2]